[Event "Early-Titled-Tuesday-Blitz-September-26-2023"]
[Site "Chess.com"]
[Date "2023.09.26"]
[Round "2"]
[White "Vesper2018"]
[Black "chito89"]
[Result "0-1"]
[WhiteElo "2579"]
[BlackElo "2795"]
[TimeControl "180+1"]
[EndTime "8:17:39 PDT"]
[Termination "chito89 won by checkmate"]

1. e4 {[%clk 0:03:00.9]} 1... c6 {[%clk 0:02:55.2]} 2. d4 {[%clk 0:03:00.4]}
2... d5 {[%clk 0:02:55.7]} 3. e5 {[%clk 0:03:00.8]} 3... Bf5 {[%clk 0:02:55.4]}
4. Nf3 {[%clk 0:03:00.9]} 4... e6 {[%clk 0:02:55.7]} 5. Be2 {[%clk 0:03:00.2]}
5... c5 {[%clk 0:02:54.3]} 6. O-O {[%clk 0:02:57.4]} 6... Nc6 {[%clk 0:02:47.7]}
7. c3 {[%clk 0:02:52.7]} 7... Bg6 {[%clk 0:02:48.1]} 8. a3 {[%clk 0:02:50.7]}
8... cxd4 {[%clk 0:02:46.5]} 9. cxd4 {[%clk 0:02:50.2]} 9... Nge7 {[%clk
0:02:47.4]} 10. b4 {[%clk 0:02:49]} 10... Nc8 {[%clk 0:02:42]} 11. Bb2 {[%clk
0:02:42.4]} 11... Nb6 {[%clk 0:02:41.2]} 12. Nbd2 {[%clk 0:02:42.3]} 12... Be7
{[%clk 0:02:41.1]} 13. Rc1 {[%clk 0:02:41.8]} 13... O-O {[%clk 0:02:40.1]} 14.
Nb3 {[%clk 0:02:39.7]} 14... Nc4 {[%clk 0:02:34.8]} 15. Bxc4 {[%clk 0:02:36.2]}
15... dxc4 {[%clk 0:02:35.7]} 16. Rxc4 {[%clk 0:02:36.3]} 16... Qd5 {[%clk
0:02:24.5]} 17. Qe2 {[%clk 0:02:21.3]} 17... a5 {[%clk 0:01:58.5]} 18. bxa5
{[%clk 0:02:14.7]} 18... Nxa5 {[%clk 0:01:56.7]} 19. Nxa5 {[%clk 0:02:13.3]}
19... Rxa5 {[%clk 0:01:57.6]} 20. a4 {[%clk 0:01:58.4]} 20... Rfa8 {[%clk
0:01:54.4]} 21. Rfc1 {[%clk 0:01:52.8]} 21... h6 {[%clk 0:01:51.2]} 22. Qd1
{[%clk 0:01:44.3]} 22... b5 {[%clk 0:01:34.2]} 23. Rc7 {[%clk 0:01:14.3]} 23...
Bf8 {[%clk 0:01:25.1]} 24. axb5 {[%clk 0:01:13.4]} 24... Rxb5 {[%clk 0:01:25.6]}
25. Bc3 {[%clk 0:01:13.3]} 25... Bh5 {[%clk 0:01:05.3]} 26. h3 {[%clk
0:01:10.4]} 26... Rb3 {[%clk 0:01:04.3]} 27. Qe2 {[%clk 0:01:03.4]} 27... Raa3
{[%clk 0:00:55.2]} 28. Rc8 {[%clk 0:00:54.9]} 28... Qb7 {[%clk 0:00:54.4]} 29.
Qc4 {[%clk 0:00:43.4]} 29... Bxf3 {[%clk 0:00:48.2]} 30. Qc5 {[%clk 0:00:32.4]}
30... Bxg2 {[%clk 0:00:47.2]} 31. Qxf8+ {[%clk 0:00:31.5]} 31... Kh7 {[%clk
0:00:47.5]} 32. Qh8+ {[%clk 0:00:22.2]} 32... Kg6 {[%clk 0:00:47.4]} 33. Rg8
{[%clk 0:00:22]} 33... f5 {[%clk 0:00:47.7]} 34. exf6 {[%clk 0:00:19.7]} 34...
Kxf6 {[%clk 0:00:48.4]} 35. Qh7 {[%clk 0:00:12.8]} 35... Rxc3 {[%clk 0:00:34.3]}
36. Rf8+ {[%clk 0:00:11.6]} 36... Kg5 {[%clk 0:00:34.6]} 37. f4+ {[%clk
0:00:01.4]} 37... Kh4 {[%clk 0:00:32.4]} 38. Rxc3 {[%clk 0:00:01.6]} 38... Ra1+
{[%clk 0:00:26.7]} 39. Kh2 {[%clk 0:00:01.7]} 39... Rh1# {[%clk 0:00:26.4]} 0-1

[Event "Early-Titled-Tuesday-Blitz-September-26-2023"]
[Site "Chess.com"]
[Date "2023.09.26"]
[Round "2"]
[White "Goryachkina"]
[Black "Fleetw00dMac"]
[Result "1/2-1/2"]
[WhiteElo "2685"]
[BlackElo "2475"]
[TimeControl "180+1"]
[EndTime "8:17:40 PDT"]
[Termination "Game drawn by repetition"]

1. e4 {[%clk 0:03:00]} 1... e5 {[%clk 0:02:59.5]} 2. Nf3 {[%clk 0:02:59.7]} 2...
Nc6 {[%clk 0:02:59.7]} 3. Bc4 {[%clk 0:03:00.1]} 3... Bc5 {[%clk 0:02:59.1]} 4.
d3 {[%clk 0:02:59.9]} 4... Nf6 {[%clk 0:02:58.6]} 5. c3 {[%clk 0:03:00.1]} 5...
a6 {[%clk 0:02:58.3]} 6. a4 {[%clk 0:02:56.4]} 6... Ba7 {[%clk 0:02:57.3]} 7. h3
{[%clk 0:02:55.4]} 7... d6 {[%clk 0:02:55.9]} 8. Nbd2 {[%clk 0:02:54.4]} 8... h6
{[%clk 0:02:55.5]} 9. Bb3 {[%clk 0:02:53.3]} 9... g5 {[%clk 0:02:50.9]} 10. Nf1
{[%clk 0:02:50]} 10... g4 {[%clk 0:02:50.7]} 11. hxg4 {[%clk 0:02:35.3]} 11...
Nxg4 {[%clk 0:02:49.8]} 12. Ne3 {[%clk 0:02:34.2]} 12... Bxe3 {[%clk 0:02:34.2]}
13. Bxe3 {[%clk 0:02:33.1]} 13... Nxe3 {[%clk 0:02:32.3]} 14. fxe3 {[%clk
0:02:33.2]} 14... Bg4 {[%clk 0:02:17.3]} 15. Bd5 {[%clk 0:02:15.9]} 15... Qd7
{[%clk 0:02:05.9]} 16. Qb3 {[%clk 0:02:13.9]} 16... Na5 {[%clk 0:02:05.7]} 17.
Qc2 {[%clk 0:02:07]} 17... Bxf3 {[%clk 0:01:58.1]} 18. gxf3 {[%clk 0:02:06.7]}
18... O-O-O {[%clk 0:01:57.5]} 19. b4 {[%clk 0:01:55.9]} 19... Nc6 {[%clk
0:01:56.3]} 20. b5 {[%clk 0:01:56.1]} 20... Nb8 {[%clk 0:01:56.4]} 21. bxa6
{[%clk 0:01:38.4]} 21... Nxa6 {[%clk 0:01:54.9]} 22. Rb1 {[%clk 0:01:37.4]}
22... c6 {[%clk 0:01:54.4]} 23. Bc4 {[%clk 0:01:37.4]} 23... Nb8 {[%clk
0:01:45.8]} 24. a5 {[%clk 0:01:35.7]} 24... d5 {[%clk 0:01:43.7]} 25. exd5
{[%clk 0:01:33.3]} 25... cxd5 {[%clk 0:01:43.3]} 26. Bb5 {[%clk 0:01:32.2]}
26... Qc7 {[%clk 0:01:40.8]} 27. Kf2 {[%clk 0:01:09.3]} 27... Rd6 {[%clk
0:01:38.5]} 28. c4 {[%clk 0:00:38.4]} 28... Rg8 {[%clk 0:01:31.5]} 29. Rhg1
{[%clk 0:00:26.9]} 29... Rdg6 {[%clk 0:01:31]} 30. Rxg6 {[%clk 0:00:20.6]} 30...
Rxg6 {[%clk 0:01:30.7]} 31. Rg1 {[%clk 0:00:19.7]} 31... e4 {[%clk 0:01:22.3]}
32. Rxg6 {[%clk 0:00:15]} 32... fxg6 {[%clk 0:01:22.5]} 33. f4 {[%clk 0:00:15]}
33... g5 {[%clk 0:01:19.5]} 34. dxe4 {[%clk 0:00:14.8]} 34... gxf4 {[%clk
0:01:18.8]} 35. exd5 {[%clk 0:00:14.4]} 35... fxe3+ {[%clk 0:01:17.2]} 36. Kxe3
{[%clk 0:00:14.8]} 36... Qg3+ {[%clk 0:01:16.5]} 37. Kd2 {[%clk 0:00:14.9]}
37... Qf4+ {[%clk 0:01:14.9]} 38. Kc3 {[%clk 0:00:14.5]} 38... Qe3+ {[%clk
0:01:09.7]} 39. Kb4 {[%clk 0:00:14]} 39... Qe1+ {[%clk 0:01:09.3]} 40. Ka4
{[%clk 0:00:13.8]} 40... Qa1+ {[%clk 0:01:07.6]} 41. Kb3 {[%clk 0:00:14.1]}
41... Qe5 {[%clk 0:01:04]} 42. Qh7 {[%clk 0:00:12.1]} 42... Qe3+ {[%clk
0:01:02.6]} 43. Ka4 {[%clk 0:00:12]} 43... Qd2 {[%clk 0:00:51.3]} 44. Qg8+
{[%clk 0:00:11.8]} 44... Kc7 {[%clk 0:00:51.2]} 45. Qg7+ {[%clk 0:00:12.1]}
45... Kc8 {[%clk 0:00:51.5]} 46. Qf8+ {[%clk 0:00:12.3]} 46... Kc7 {[%clk
0:00:51.8]} 47. Qe7+ {[%clk 0:00:12.4]} 47... Kc8 {[%clk 0:00:52]} 48. Qe6+
{[%clk 0:00:12.5]} 48... Kc7 {[%clk 0:00:51]} 49. Qe5+ {[%clk 0:00:12.2]} 49...
Kc8 {[%clk 0:00:48.8]} 50. Qe6+ {[%clk 0:00:09.3]} 50... Kc7 {[%clk 0:00:48.8]}
51. Qe7+ {[%clk 0:00:09.1]} 51... Kc8 {[%clk 0:00:48.9]} 52. Qe6+ {[%clk
0:00:08]} 1/2-1/2

[Event "Early-Titled-Tuesday-Blitz-September-26-2023"]
[Site "Chess.com"]
[Date "2023.09.26"]
[Round "2"]
[White "Flawless_Fighter"]
[Black "Arteler"]
[Result "1-0"]
[WhiteElo "2829"]
[BlackElo "2596"]
[TimeControl "180+1"]
[EndTime "8:17:41 PDT"]
[Termination "Flawless_Fighter won by resignation"]

1. Nf3 {[%clk 0:02:58.7]} 1... d5 {[%clk 0:02:58.9]} 2. d4 {[%clk 0:02:58.4]}
2... c6 {[%clk 0:02:59]} 3. Bf4 {[%clk 0:02:58.5]} 3... Nf6 {[%clk 0:02:59.3]}
4. e3 {[%clk 0:02:58.8]} 4... Bf5 {[%clk 0:02:59.4]} 5. Bd3 {[%clk 0:02:58.8]}
5... Ne4 {[%clk 0:02:59.1]} 6. Nbd2 {[%clk 0:02:58.1]} 6... e6 {[%clk 0:02:57]}
7. O-O {[%clk 0:02:58.3]} 7... Nd7 {[%clk 0:02:57.3]} 8. h3 {[%clk 0:02:58.6]}
8... Be7 {[%clk 0:02:54.8]} 9. Qe2 {[%clk 0:02:58.8]} 9... O-O {[%clk
0:02:52.9]} 10. c4 {[%clk 0:02:58.3]} 10... h6 {[%clk 0:02:52]} 11. Rac1 {[%clk
0:02:57.4]} 11... Rc8 {[%clk 0:02:51.9]} 12. Rfd1 {[%clk 0:02:56.9]} 12... Ndf6
{[%clk 0:02:47.6]} 13. Nf1 {[%clk 0:02:46.7]} 13... Nd7 {[%clk 0:02:36]} 14. Bh2
{[%clk 0:02:46.2]} 14... Bd6 {[%clk 0:02:12.6]} 15. Bxd6 {[%clk 0:02:36.1]}
15... Nxd6 {[%clk 0:02:13.5]} 16. b3 {[%clk 0:02:32.9]} 16... Ne4 {[%clk
0:02:04.8]} 17. N1d2 {[%clk 0:02:30.6]} 17... Qf6 {[%clk 0:02:02]} 18. b4 {[%clk
0:02:16.2]} 18... Rfd8 {[%clk 0:01:59.8]} 19. a4 {[%clk 0:02:13]} 19... e5
{[%clk 0:01:59.9]} 20. dxe5 {[%clk 0:02:09.9]} 20... Nxe5 {[%clk 0:02:00.8]} 21.
Nxe5 {[%clk 0:02:10.2]} 21... Qxe5 {[%clk 0:02:01]} 22. Nf3 {[%clk 0:02:10]}
22... Qf6 {[%clk 0:01:56.3]} 23. Qc2 {[%clk 0:02:05.5]} 23... Bg6 {[%clk
0:01:50.8]} 24. Nd4 {[%clk 0:01:41.7]} 24... Bh5 {[%clk 0:01:15.8]} 25. Rf1
{[%clk 0:01:29.5]} 25... Qe5 {[%clk 0:01:15.7]} 26. cxd5 {[%clk 0:01:24.1]}
26... cxd5 {[%clk 0:01:16.6]} 27. Qxc8 {[%clk 0:01:23.5]} 27... Rxc8 {[%clk
0:01:17.5]} 28. Rxc8+ {[%clk 0:01:23.4]} 28... Kh7 {[%clk 0:01:18.4]} 29. f3
{[%clk 0:01:09.2]} 29... Qg3 {[%clk 0:01:18.7]} 30. Nf5 {[%clk 0:01:01.3]} 30...
Qe5 {[%clk 0:00:59.3]} 31. fxe4 {[%clk 0:01:00.1]} 31... dxe4 {[%clk 0:00:59.9]}
32. Bb1 {[%clk 0:00:52.5]} 32... Bg6 {[%clk 0:01:00.3]} 33. Nd4 {[%clk
0:00:49.5]} 33... Qg3 {[%clk 0:00:59.8]} 34. Rc3 {[%clk 0:00:48.1]} 34... Qd6
{[%clk 0:00:55.9]} 35. b5 {[%clk 0:00:46.7]} 35... Qb4 {[%clk 0:00:56]} 36. Rc7
{[%clk 0:00:45.6]} 36... Qa3 {[%clk 0:00:44.9]} 37. Nf5 {[%clk 0:00:35.3]} 37...
Qxa4 {[%clk 0:00:27.7]} 38. Rxb7 {[%clk 0:00:25.5]} 38... Qb4 {[%clk 0:00:21.8]}
39. Nh4 {[%clk 0:00:23.6]} 39... Qc5 {[%clk 0:00:18.1]} 40. Nxg6 {[%clk
0:00:22.6]} 40... Qxe3+ {[%clk 0:00:18.7]} 41. Kh2 {[%clk 0:00:22.7]} 41... fxg6
{[%clk 0:00:18.2]} 42. Rff7 {[%clk 0:00:22.7]} 42... h5 {[%clk 0:00:17.2]} 43.
h4 {[%clk 0:00:19.6]} 43... Qf4+ {[%clk 0:00:11.6]} 44. Rxf4 {[%clk 0:00:19.4]}
1-0

[Event "Early-Titled-Tuesday-Blitz-September-26-2023"]
[Site "Chess.com"]
[Date "2023.09.26"]
[Round "2"]
[White "Eagle_2019"]
[Black "zozik"]
[Result "1-0"]
[WhiteElo "2691"]
[BlackElo "2370"]
[TimeControl "180+1"]
[EndTime "8:17:41 PDT"]
[Termination "Eagle_2019 won on time"]

1. d4 {[%clk 0:03:00.9]} 1... d5 {[%clk 0:02:57.1]} 2. Nf3 {[%clk 0:03:01.8]}
2... Nf6 {[%clk 0:02:57.3]} 3. c4 {[%clk 0:03:02.4]} 3... e6 {[%clk 0:02:57.9]}
4. Nc3 {[%clk 0:03:00.4]} 4... c5 {[%clk 0:02:58]} 5. cxd5 {[%clk 0:03:00.2]}
5... exd5 {[%clk 0:02:57.6]} 6. g3 {[%clk 0:02:58.2]} 6... Nc6 {[%clk
0:02:57.7]} 7. Bg2 {[%clk 0:02:57.9]} 7... Be7 {[%clk 0:02:58.2]} 8. O-O {[%clk
0:02:57.6]} 8... O-O {[%clk 0:02:58.9]} 9. dxc5 {[%clk 0:02:57.6]} 9... Bxc5
{[%clk 0:02:57.3]} 10. Bg5 {[%clk 0:02:56.5]} 10... Be6 {[%clk 0:02:49.2]} 11.
Bxf6 {[%clk 0:02:52.9]} 11... Qxf6 {[%clk 0:02:50.1]} 12. Nxd5 {[%clk
0:02:52.6]} 12... Qxb2 {[%clk 0:02:47.9]} 13. Nc7 {[%clk 0:02:52]} 13... Rad8
{[%clk 0:02:46.4]} 14. Qc1 {[%clk 0:02:51.6]} 14... Ba3 {[%clk 0:02:28.5]} 15.
Nxe6 {[%clk 0:02:42.1]} 15... Qxc1 {[%clk 0:02:24.1]} 16. Raxc1 {[%clk
0:02:34.5]} 16... fxe6 {[%clk 0:02:13.2]} 17. Rb1 {[%clk 0:02:34.6]} 17... b6
{[%clk 0:02:08.8]} 18. Ng5 {[%clk 0:02:22]} 18... Nd4 {[%clk 0:02:06.7]} 19. e3
{[%clk 0:02:20.9]} 19... h6 {[%clk 0:02:05.1]} 20. exd4 {[%clk 0:02:17]} 20...
hxg5 {[%clk 0:02:03.9]} 21. Rfd1 {[%clk 0:02:16.9]} 21... Rd6 {[%clk 0:01:58.5]}
22. d5 {[%clk 0:02:12.9]} 22... Bc5 {[%clk 0:01:54.4]} 23. Rb2 {[%clk
0:02:12.3]} 23... exd5 {[%clk 0:01:49.1]} 24. Rxd5 {[%clk 0:02:11.1]} 24... Rdf6
{[%clk 0:01:45.1]} 25. Rdd2 {[%clk 0:02:07.9]} 25... g4 {[%clk 0:01:42.2]} 26.
Bd5+ {[%clk 0:02:06.8]} 26... Kh7 {[%clk 0:01:40.9]} 27. Be4+ {[%clk 0:02:05.6]}
27... Kh6 {[%clk 0:01:40.8]} 28. Kg2 {[%clk 0:02:04.4]} 28... a5 {[%clk
0:01:36]} 29. a4 {[%clk 0:01:54]} 29... Kg5 {[%clk 0:01:32.4]} 30. Bd5 {[%clk
0:01:48.6]} 30... Kh6 {[%clk 0:01:28.2]} 31. Bb3 {[%clk 0:01:47]} 31... Kg5
{[%clk 0:01:17.1]} 32. Bd1 {[%clk 0:01:45.4]} 32... Rf5 {[%clk 0:01:11.7]} 33.
Rbc2 {[%clk 0:01:40]} 33... R5f6 {[%clk 0:01:08.2]} 34. Rd5+ {[%clk 0:01:33.5]}
34... Rf5 {[%clk 0:01:08]} 35. Rcd2 {[%clk 0:01:33.3]} 35... Kh6 {[%clk
0:00:47.6]} 36. Rxf5 {[%clk 0:01:28.7]} 36... Rxf5 {[%clk 0:00:48.5]} 37. Bxg4
{[%clk 0:01:28.5]} 37... Re5 {[%clk 0:00:47.8]} 38. Rd8 {[%clk 0:01:21.2]} 38...
Re4 {[%clk 0:00:41.8]} 39. Bd1 {[%clk 0:01:12]} 39... Rd4 {[%clk 0:00:32.3]} 40.
Rxd4 {[%clk 0:01:11.1]} 40... Bxd4 {[%clk 0:00:31.9]} 41. h4 {[%clk 0:01:10.3]}
41... Bc5 {[%clk 0:00:28.9]} 42. f4 {[%clk 0:01:09.6]} 42... Bd4 {[%clk
0:00:27]} 43. Kf3 {[%clk 0:01:09.3]} 43... Bc5 {[%clk 0:00:26]} 44. g4 {[%clk
0:01:08.7]} 44... Be7 {[%clk 0:00:20.7]} 45. g5+ {[%clk 0:01:08.3]} 45... Kg6
{[%clk 0:00:19.5]} 46. Kg4 {[%clk 0:01:07.8]} 46... Kf7 {[%clk 0:00:18.9]} 47.
Bb3+ {[%clk 0:01:07]} 47... Kf8 {[%clk 0:00:17.8]} 48. f5 {[%clk 0:01:07]} 48...
Bb4 {[%clk 0:00:16.7]} 49. h5 {[%clk 0:01:06.4]} 49... Bd2 {[%clk 0:00:16]} 50.
f6 {[%clk 0:01:04.1]} 50... gxf6 {[%clk 0:00:15.8]} 51. gxf6 {[%clk 0:01:03]}
51... Bh6 {[%clk 0:00:14.2]} 52. Kf5 {[%clk 0:01:03.1]} 52... Bc1 {[%clk
0:00:10.5]} 53. Kg6 {[%clk 0:01:03.3]} 53... Bb2 {[%clk 0:00:08.3]} 54. h6
{[%clk 0:01:03]} 54... Ba1 {[%clk 0:00:06.7]} 55. h7 {[%clk 0:01:02.9]} 1-0

[Event "Early-Titled-Tuesday-Blitz-September-26-2023"]
[Site "Chess.com"]
[Date "2023.09.26"]
[Round "2"]
[White "jens1102"]
[Black "Qvalda"]
[Result "1/2-1/2"]
[WhiteElo "2622"]
[BlackElo "2371"]
[TimeControl "180+1"]
[EndTime "8:17:42 PDT"]
[Termination "Game drawn - insufficient material"]

1. e4 {[%clk 0:03:00.9]} 1... e6 {[%clk 0:03:00.1]} 2. d4 {[%clk 0:02:57.3]}
2... d5 {[%clk 0:03:00.2]} 3. e5 {[%clk 0:02:57.9]} 3... Bd7 {[%clk 0:02:58.6]}
4. Nf3 {[%clk 0:02:57.9]} 4... a6 {[%clk 0:02:57.8]} 5. a4 {[%clk 0:02:56.8]}
5... c5 {[%clk 0:02:57.2]} 6. c3 {[%clk 0:02:56.8]} 6... Nc6 {[%clk 0:02:56.2]}
7. Bd3 {[%clk 0:02:56.1]} 7... cxd4 {[%clk 0:02:52.1]} 8. O-O {[%clk 0:02:56.1]}
8... dxc3 {[%clk 0:02:38.9]} 9. bxc3 {[%clk 0:02:57]} 9... Nh6 {[%clk
0:02:31.6]} 10. Ba3 {[%clk 0:02:53.9]} 10... Bxa3 {[%clk 0:02:28.5]} 11. Nxa3
{[%clk 0:02:54.8]} 11... O-O {[%clk 0:02:24.3]} 12. c4 {[%clk 0:02:51]} 12... d4
{[%clk 0:01:55]} 13. c5 {[%clk 0:02:50.6]} 13... f6 {[%clk 0:01:39.7]} 14. Nc4
{[%clk 0:02:42.1]} 14... fxe5 {[%clk 0:01:39.5]} 15. Ncxe5 {[%clk 0:02:33.5]}
15... Nxe5 {[%clk 0:01:40.4]} 16. Nxe5 {[%clk 0:02:34.1]} 16... Bc6 {[%clk
0:01:36.1]} 17. Nxc6 {[%clk 0:02:31.2]} 17... bxc6 {[%clk 0:01:35.6]} 18. Re1
{[%clk 0:02:30.7]} 18... Qf6 {[%clk 0:01:32.3]} 19. Qc2 {[%clk 0:02:30.3]} 19...
g6 {[%clk 0:01:20.5]} 20. Rxe6 {[%clk 0:02:16.7]} 20... Qh4 {[%clk 0:01:12.5]}
21. Re4 {[%clk 0:02:11.3]} 21... Ng4 {[%clk 0:01:07.7]} 22. Qc4+ {[%clk
0:02:03.2]} 22... Rf7 {[%clk 0:00:53.7]} 23. h3 {[%clk 0:02:01.1]} 23... Qxf2+
{[%clk 0:00:52.8]} 24. Kh1 {[%clk 0:02:01.3]} 24... Ne3 {[%clk 0:00:42.3]} 25.
Qa2 {[%clk 0:01:49.4]} 25... Kg7 {[%clk 0:00:29.7]} 26. Rxd4 {[%clk 0:01:43.1]}
26... Qxa2 {[%clk 0:00:23.5]} 27. Rxa2 {[%clk 0:01:42.3]} 27... Nd5 {[%clk
0:00:21.3]} 28. Bc4 {[%clk 0:01:41.4]} 28... Rf5 {[%clk 0:00:16.2]} 29. Bxd5
{[%clk 0:01:40.4]} 29... Rxd5 {[%clk 0:00:15.7]} 30. Rxd5 {[%clk 0:01:40.4]}
30... cxd5 {[%clk 0:00:16.6]} 31. Rd2 {[%clk 0:01:40.5]} 31... Rb8 {[%clk
0:00:13.6]} 32. Rxd5 {[%clk 0:01:39.9]} 32... Rb1+ {[%clk 0:00:14.1]} 33. Kh2
{[%clk 0:01:40.1]} 33... Rc1 {[%clk 0:00:15]} 34. Rd6 {[%clk 0:01:39]} 34...
Rxc5 {[%clk 0:00:13.7]} 35. Rxa6 {[%clk 0:01:39.7]} 35... Rc4 {[%clk 0:00:13]}
36. Ra8 {[%clk 0:01:39.9]} 36... Kh6 {[%clk 0:00:11.4]} 37. Kg3 {[%clk
0:01:39.9]} 37... Rc3+ {[%clk 0:00:10]} 38. Kf4 {[%clk 0:01:39.7]} 38... Ra3
{[%clk 0:00:10.4]} 39. a5 {[%clk 0:01:39.6]} 39... Ra4+ {[%clk 0:00:09.7]} 40.
Ke5 {[%clk 0:01:39.9]} 40... Ra2 {[%clk 0:00:10.3]} 41. g4 {[%clk 0:01:40]}
41... Kg5 {[%clk 0:00:09.9]} 42. a6 {[%clk 0:01:39.8]} 42... h5 {[%clk
0:00:09.2]} 43. gxh5 {[%clk 0:01:39.6]} 43... gxh5 {[%clk 0:00:10.1]} 44. a7
{[%clk 0:00:47.8]} 44... Kh4 {[%clk 0:00:10]} 45. Kd6 {[%clk 0:00:46.7]} 45...
Kxh3 {[%clk 0:00:09.3]} 46. Kc6 {[%clk 0:00:47.3]} 46... h4 {[%clk 0:00:09.3]}
47. Kb6 {[%clk 0:00:47.7]} 47... Rb2+ {[%clk 0:00:09.6]} 48. Kc7 {[%clk
0:00:48.1]} 48... Rc2+ {[%clk 0:00:09.2]} 49. Kb7 {[%clk 0:00:48.8]} 49... Rb2+
{[%clk 0:00:09.5]} 50. Kc6 {[%clk 0:00:49.6]} 50... Rc2+ {[%clk 0:00:09.9]} 51.
Kb5 {[%clk 0:00:50.4]} 51... Ra2 {[%clk 0:00:10]} 52. Kb4 {[%clk 0:00:50.7]}
52... Kh2 {[%clk 0:00:08.8]} 53. Kb3 {[%clk 0:00:51.5]} 53... Ra1 {[%clk
0:00:08.5]} 54. Kb2 {[%clk 0:00:51.8]} 54... Ra6 {[%clk 0:00:08.5]} 55. Rh8
{[%clk 0:00:49.1]} 55... Rxa7 {[%clk 0:00:08]} 56. Rxh4+ {[%clk 0:00:49.4]}
56... Kg3 {[%clk 0:00:08.3]} 57. Rb4 {[%clk 0:00:49.8]} 57... Kf3 {[%clk
0:00:08.3]} 58. Rb3+ {[%clk 0:00:50.7]} 58... Ke4 {[%clk 0:00:08.2]} 59. Ra3
{[%clk 0:00:51.6]} 59... Rxa3 {[%clk 0:00:07.6]} 60. Kxa3 {[%clk 0:00:52.5]}
1/2-1/2

[Event "Early-Titled-Tuesday-Blitz-September-26-2023"]
[Site "Chess.com"]
[Date "2023.09.26"]
[Round "2"]
[White "Zampronha1971"]
[Black "LangesNasenhaar"]
[Result "0-1"]
[WhiteElo "2270"]
[BlackElo "2482"]
[TimeControl "180+1"]
[EndTime "8:17:42 PDT"]
[Termination "LangesNasenhaar won on time"]

1. e4 {[%clk 0:03:00.9]} 1... g6 {[%clk 0:02:59.6]} 2. d4 {[%clk 0:03:00]} 2...
Bg7 {[%clk 0:03:00.1]} 3. Nc3 {[%clk 0:02:59.9]} 3... c6 {[%clk 0:03:00.7]} 4.
f4 {[%clk 0:02:54.1]} 4... d5 {[%clk 0:03:01]} 5. e5 {[%clk 0:02:54.4]} 5... h5
{[%clk 0:03:00.3]} 6. Nf3 {[%clk 0:02:50.4]} 6... Bg4 {[%clk 0:02:58.5]} 7. h3
{[%clk 0:02:46.2]} 7... Bxf3 {[%clk 0:02:58.4]} 8. Qxf3 {[%clk 0:02:47]} 8... h4
{[%clk 0:02:59]} 9. Bd3 {[%clk 0:02:39.5]} 9... e6 {[%clk 0:02:58.6]} 10. Ne2
{[%clk 0:02:39.3]} 10... Nh6 {[%clk 0:02:54.7]} 11. Be3 {[%clk 0:02:37.1]} 11...
Nf5 {[%clk 0:02:53.9]} 12. Bxf5 {[%clk 0:02:36.3]} 12... gxf5 {[%clk 0:02:54.8]}
13. O-O-O {[%clk 0:02:35.9]} 13... Bf8 {[%clk 0:02:51.3]} 14. Kb1 {[%clk
0:02:36.2]} 14... Be7 {[%clk 0:02:51]} 15. Rc1 {[%clk 0:02:33.3]} 15... b5
{[%clk 0:02:49.4]} 16. Rcg1 {[%clk 0:02:27.4]} 16... Nd7 {[%clk 0:02:40.2]} 17.
g4 {[%clk 0:02:27.8]} 17... hxg3 {[%clk 0:02:38.2]} 18. Rxg3 {[%clk 0:02:27.8]}
18... Nf8 {[%clk 0:02:26.3]} 19. Qg2 {[%clk 0:02:21.4]} 19... Ng6 {[%clk
0:01:53.7]} 20. Nc1 {[%clk 0:02:18.6]} 20... Rh6 {[%clk 0:01:44.9]} 21. Qe2
{[%clk 0:02:04.6]} 21... a5 {[%clk 0:01:36.7]} 22. Nd3 {[%clk 0:02:04]} 22...
Kd7 {[%clk 0:01:34]} 23. Nc5+ {[%clk 0:02:00.3]} 23... Bxc5 {[%clk 0:01:32.8]}
24. dxc5 {[%clk 0:02:01.2]} 24... Rh4 {[%clk 0:01:23.9]} 25. Qd2 {[%clk
0:01:39.2]} 25... a4 {[%clk 0:01:18.5]} 26. Rhg1 {[%clk 0:01:28.9]} 26... Rh6
{[%clk 0:00:57.4]} 27. a3 {[%clk 0:01:26.4]} 27... Qa5 {[%clk 0:00:52.2]} 28.
Qf2 {[%clk 0:01:13.9]} 28... Rah8 {[%clk 0:00:51]} 29. Bd2 {[%clk 0:01:12.5]}
29... Qa7 {[%clk 0:00:48.7]} 30. Rh1 {[%clk 0:01:12.3]} 30... R8h7 {[%clk
0:00:43]} 31. Be3 {[%clk 0:01:12.7]} 31... Qa8 {[%clk 0:00:42.3]} 32. Qd2 {[%clk
0:01:12.4]} 32... Rh4 {[%clk 0:00:36.4]} 33. Ka2 {[%clk 0:01:08.3]} 33... Ke7
{[%clk 0:00:34.9]} 34. Rh2 {[%clk 0:01:08.3]} 34... Kf8 {[%clk 0:00:34.9]} 35.
Rh1 {[%clk 0:01:08.5]} 35... Kg7 {[%clk 0:00:34.6]} 36. Rh2 {[%clk 0:01:08.9]}
36... Kh8 {[%clk 0:00:34.7]} 37. Rh1 {[%clk 0:01:08.7]} 37... Qd8 {[%clk
0:00:28.3]} 38. Rh2 {[%clk 0:01:05.1]} 38... Ne7 {[%clk 0:00:22.5]} 39. Rh1
{[%clk 0:00:57.5]} 39... d4 {[%clk 0:00:18.7]} 40. Bxd4 {[%clk 0:00:56.1]} 40...
Qd5+ {[%clk 0:00:18.1]} 0-1